fUSD/lending_fUSD_20250607
["ID","MTS","AMOUNT","RATE_DAILY","PERIOD"]
[364849982,1749274270433,-757.79,0.00027499,5]
[364849983,1749274270444,-757.79,0.00027499,5]
[364849984,1749274270456,-500.0,0.00027499,5]
[364849985,1749274270467,-250000.0,0.000275,10]
[364849986,1749274270479,-194.93371217,0.000275,2]
[364849987,1749274270489,-532.42478678,0.000275,2]
[364849988,1749274270500,-200.0,0.000275,14]
[364849989,1749274270512,-200.0,0.000275,14]
[364849990,1749274270524,-200.0,0.000275,14]
[364849991,1749274270535,-200.0,0.000275,14]
[364849992,1749274270546,-200.0,0.000275,14]
[364849993,1749274270556,-200.0,0.000275,14]
[364849994,1749274270567,-200.0,0.000275,14]
[364849995,1749274270577,-200.0,0.000275,14]
[364849996,1749274270589,-200.0,0.000275,14]
[364849997,1749274270600,-200.0,0.000275,14]
[364849998,1749274270611,-200.0,0.000275,14]
[364849999,1749274270622,-200.0,0.000275,14]
[364850000,1749274270633,-200.0,0.000275,14]
[364850001,1749274270645,-200.0,0.000275,14]
[364850002,1749274270655,-200.0,0.000275,14]
[364850003,1749274270666,-200.0,0.000275,14]
[364850004,1749274270678,-200.0,0.000275,14]
[364850005,1749274270688,-200.0,0.000275,14]
[364850006,1749274270699,-200.0,0.000275,14]
[364850007,1749274270709,-200.0,0.000275,14]
[364850008,1749274270719,-200.0,0.000275,14]
[364850009,1749274270729,-200.0,0.000275,14]
[364850010,1749274270740,-200.0,0.000275,14]
[364850011,1749274270750,-200.0,0.000275,14]
[364850012,1749274270760,-200.0,0.000275,14]
[364850013,1749274270771,-200.0,0.000275,14]
[364850014,1749274270783,-200.0,0.000275,14]
[364850015,1749274270793,-200.0,0.000275,14]
[364850016,1749274270805,-200.0,0.000275,14]
[364850017,1749274270818,-200.0,0.000275,14]
[364850018,1749274270830,-295.0,0.000275,14]
[364850019,1749274270841,-220.734717,0.000275,7]
[364850020,1749274270852,-151.0,0.000275,7]
[364850021,1749274270862,-151.0,0.000275,7]
[364850022,1749274270873,-151.0,0.000275,7]
[364850023,1749274270885,-151.0,0.000275,7]
[364850024,1749274270895,-151.0,0.000275,7]
[364850025,1749274270906,-151.0,0.000275,7]
[364850026,1749274270918,-151.0,0.000275,7]
[364850027,1749274270929,-192.083001,0.000275,7]
[364850028,1749274270940,-192.083001,0.000275,7]
[364850029,1749274270951,-151.0,0.000275,7]
[364850030,1749274270961,-151.0,0.000275,7]
[364850031,1749274270972,-151.0,0.000275,7]
[364850032,1749274270982,-151.0,0.000275,7]
[364850033,1749274270993,-151.0,0.000275,7]
[364850034,1749274271004,-183.691151,0.000275,7]
[364850035,1749274271014,-228.259468,0.000275,7]
[364850036,1749274271026,-151.0,0.000275,7]
[364850037,1749274271036,-151.0,0.000275,7]
[364850038,1749274271047,-151.0,0.000275,7]
[364850039,1749274271057,-179.912112,0.000275,7]
[364850040,1749274271068,-206.465903,0.000275,7]
[364850041,1749274271079,-206.465903,0.000275,7]
[364850042,1749274271089,-151.0,0.000275,7]
[364850043,1749274271101,-151.0,0.000275,7]
[364850044,1749274271113,-151.0,0.000275,7]
[364850045,1749274271123,-151.0,0.000275,7]
[364850046,1749274271134,-151.0,0.000275,7]
[364850047,1749274271144,-151.0,0.000275,7]
[364850048,1749274271155,-151.0,0.000275,7]
[364850049,1749274271165,-153.436081,0.000275,7]
[364850050,1749274271176,-151.0,0.000275,7]
[364850051,1749274271187,-151.0,0.000275,7]
[364850052,1749274271198,-151.0,0.000275,7]
[364850053,1749274271211,-156.900628,0.000275,7]
[364850054,1749274271221,-151.0,0.000275,7]
[364850055,1749274271232,-151.0,0.000275,7]
[364850056,1749274271243,-151.0,0.000275,7]
[364850057,1749274271255,-178.070023,0.000275,7]
[364850058,1749274271267,-151.0,0.000275,7]
[364850059,1749274271279,-178.070023,0.000275,7]
[364850060,1749274271291,-213.696042,0.000275,7]
[364850061,1749274271302,-213.696042,0.000275,7]
[364850062,1749274271313,-151.0,0.000275,7]
[364850063,1749274271323,-151.0,0.000275,7]
[364850064,1749274271334,-152.81944,0.000275,7]
[364850065,1749274271344,-223.721959,0.000275,7]
[364850066,1749274271354,-223.721959,0.000275,7]
[364850067,1749274271364,-151.0,0.000275,7]
[364850068,1749274271375,-247.742247,0.000275,7]
[364850069,1749274271387,-247.742247,0.000275,7]
[364850070,1749274271398,-151.0,0.000275,7]
[364850071,1749274271408,-151.0,0.000275,7]
[364850072,1749274271418,-171.259726,0.000275,7]
[364850073,1749274271429,-151.0,0.000275,7]
[364850074,1749274271440,-171.259726,0.000275,7]
[364850075,1749274271450,-151.0,0.000275,7]
[364850076,1749274271461,-273.709969,0.000275,7]
[364850077,1749274271471,-151.0,0.000275,7]
[364850078,1749274271483,-151.0,0.000275,7]
[364850079,1749274271493,-151.0,0.000275,7]
[364850080,1749274271505,-151.0,0.000275,7]
[364850081,1749274271518,-151.0,0.000275,7]
[364850082,1749274271530,-151.0,0.000275,7]
[364850083,1749274271542,-194.8384,0.000275,7]
[364850084,1749274271552,-194.8384,0.000275,7]
[364850085,1749274271564,-163.478458,0.000275,7]
[364850086,1749274271575,-210.118056,0.000275,7]
[364850087,1749274271589,-163.478458,0.000275,7]
[364850088,1749274271599,-151.0,0.000275,7]
[364850089,1749274271609,-210.118056,0.000275,7]
[364850090,1749274271620,-151.0,0.000275,7]
[364850091,1749274271632,-151.0,0.000275,7]
[364850092,1749274271643,-224.392342,0.000275,7]
[364850093,1749274271655,-224.392342,0.000275,7]
[364850094,1749274271667,-151.0,0.000275,7]
[364850095,1749274271679,-157.746796,0.000275,7]
[364850096,1749274271940,-157.746796,0.000275,7]
[364850097,1749274271951,-151.0,0.000275,7]
[364850098,1749274271961,-151.0,0.000275,7]
[364850099,1749274271971,-961.409907,0.000275,7]
[364850100,1749274271981,-241.152241,0.000275,7]
[364850101,1749274271992,-961.409907,0.000275,7]
[364850102,1749274272002,-229.208143,0.000275,7]
[364850103,1749274272012,-151.0,0.000275,7]
[364850104,1749274272022,-151.0,0.000275,7]
[364850105,1749274272032,-962.074668,0.000275,7]
[364850106,1749274272042,-294.554657,0.000275,7]
[364850107,1749274272053,-962.074668,0.000275,7]
[364850108,1749274272063,-294.554657,0.000275,7]
[364850109,1749274272074,-167.89061,0.000275,7]
[364850110,1749274272083,-151.0,0.000275,7]
[364850111,1749274272094,-1030.373222,0.000275,7]
[364850112,1749274272104,-1030.373222,0.000275,7]
[364850113,1749274272114,-1310.956622,0.000275,7]
[364850114,1749274272124,-1310.956622,0.000275,7]
[364850115,1749274272135,-205.49714,0.000275,7]
[364850116,1749274272145,-205.49714,0.000275,7]
[364850117,1749274272154,-316.849758,0.000275,7]
[364850118,1749274272164,-316.849758,0.000275,7]
[364850119,1749274272174,-173.567389,0.000275,7]
[364850120,1749274272184,-151.0,0.000275,7]
[364850121,1749274272194,-173.567389,0.000275,7]
[364850122,1749274272203,-170.184927,0.000275,7]
[364850123,1749274272213,-1563.367253,0.000275,7]
[364850124,1749274272224,-170.184927,0.000275,7]
[364850125,1749274272234,-1563.367253,0.000275,7]
[364850126,1749274272245,-151.0,0.000275,7]
[364850127,1749274272255,-280.992215,0.000275,7]
[364850128,1749274272265,-280.992215,0.000275,7]
[364850129,1749274272276,-216.293326,0.000275,7]
[364850130,1749274272286,-216.293326,0.000275,7]
[364850131,1749274272297,-151.0,0.000275,7]
[364850132,1749274272306,-151.0,0.000275,7]
[364850133,1749274272316,-982.439498,0.000275,7]
[364850134,1749274272327,-982.439498,0.000275,7]
[364850135,1749274272337,-1833.26369,0.000275,7]
[364850136,1749274272347,-1833.26369,0.000275,7]
[364850137,1749274272357,-179.340194,0.000275,7]
[364850138,1749274272367,-179.340194,0.000275,7]
[364850139,1749274272377,-151.0,0.000275,7]
[364850140,1749274272387,-151.0,0.000275,7]
[364850141,1749274272397,-207.852747,0.000275,7]
[364850142,1749274272406,-10000.0,0.000275,7]
[364850143,1749274272417,-207.852747,0.000275,7]
[364850144,1749274272427,-10000.0,0.000275,7]
[364850145,1749274272436,-3821.42192,0.000275,7]
[364850146,1749274272446,-895.060117,0.000275,7]
[364850147,1749274272455,-895.060117,0.000275,7]
[364850148,1749274272464,-151.0,0.000275,7]
[364850149,1749274272475,-300.853411,0.000275,7]
[364850150,1749274272485,-300.853411,0.000275,7]
[364850151,1749274272495,-167.857019,0.000275,7]
[364850152,1749274272505,-167.857019,0.000275,7]
[364850153,1749274272515,-151.0,0.000275,7]
[364850154,1749274272524,-271.080303,0.000275,7]
[364850155,1749274272534,-354.436695,0.000275,7]
[364850156,1749274272545,-354.436695,0.000275,7]
[364850157,1749274272554,-1554.807314,0.000275,7]
[364850158,1749274272565,-1554.807314,0.000275,7]
[364850159,1749274272575,-1000.0,0.000275,2]
[364850160,1749274272588,-151.0,0.000275,7]
[364850161,1749274272600,-200.0,0.000275,2]
[364850162,1749274272611,-460.94,0.00027507,2]
[364850163,1749274272620,-158.46912684,0.00027507,30]
[364850164,1749274272630,-158.46912683,0.00027507,30]
[364850165,1749274272641,-1671.0,0.00027511,2]
[364850166,1749274272651,-1120.0,0.00027511,2]
[364850167,1749274272661,-150.0,0.00027512,2]
[364850168,1749274272672,-150.0,0.00027519,2]
[364850169,1749274272682,-1000.0,0.00027521,5]
[364850170,1749274272691,-505.26649559,0.00027521,5]
[364850171,1749274272702,-500.0,0.00027521,5]
[364850172,1749274272711,-500.90964118,0.00027521,5]
[364850173,1749274272721,-1000.0,0.00027521,5]
[364850174,1749274272731,-758.17982996,0.00027521,17]
[364850175,1749274272741,-150.0,0.00027522,2]
[364850176,1749274272751,-935.21233493,0.00027532,2]
[364850177,1749274272761,-151.0,0.00027532,7]
[364850178,1749274272772,-176.0067784,0.00027534,30]
[364850179,1749274272781,-410.68248293,0.00027534,30]
[364850180,1749274272791,-1000.0,0.00027537,7]
[364850181,1749274272801,-1671.0,0.00027539,2]
[364850182,1749274272810,-1120.0,0.00027539,2]
[364850183,1749274272820,-150.0,0.00027541,2]
[364850184,1749274272830,-2212.47,0.00027541,5]
[364850185,1749274272840,-2212.47,0.00027541,5]
[364850186,1749274272851,-170.184927,0.00027542,7]
[364850187,1749274272860,-1563.367253,0.00027542,7]
[364850188,1749274272871,-170.184927,0.00027542,7]
[364850189,1749274272881,-1563.367253,0.00027542,7]
[364850190,1749274272891,-151.0,0.00027542,7]
[364850191,1749274272902,-280.992215,0.00027542,7]
[364850192,1749274272912,-280.992215,0.00027542,7]
[364850193,1749274272922,-216.293326,0.00027542,7]
[364850194,1749274272932,-216.293326,0.00027542,7]
[364850195,1749274272942,-151.0,0.00027542,7]
[364850196,1749274272952,-151.0,0.00027542,7]
[364850197,1749274272962,-982.439498,0.00027542,7]
[364850198,1749274272972,-982.439498,0.00027542,7]
[364850199,1749274272982,-1833.26369,0.00027542,7]
[364850200,1749274272992,-1833.26369,0.00027542,7]
[364850201,1749274273002,-179.340194,0.00027542,7]
[364850202,1749274273012,-179.340194,0.00027542,7]
[364850203,1749274273023,-151.0,0.00027542,7]
[364850204,1749274273033,-207.852747,0.00027542,7]
[364850205,1749274273043,-10000.0,0.00027542,7]
[364850206,1749274273053,-207.852738,0.00027542,7]
[364850207,1749274273062,-10000.0,0.00027542,7]
[364850208,1749274273073,-895.060117,0.00027542,7]
[364850209,1749274273083,-895.060117,0.00027542,7]
[364850210,1749274273094,-287.580691,0.00027542,7]
[364850211,1749274273104,-300.853411,0.00027542,7]
[364850212,1749274273114,-300.853411,0.00027542,7]
[364850213,1749274273124,-167.857019,0.00027542,7]
[364850214,1749274273133,-167.857017,0.00027542,7]
[364850215,1749274273145,-9901.7582378,0.00027542,2]
[364850216,1749274273156,-151.0,0.00027542,7]
[364850217,1749274273167,-354.436695,0.00027542,7]
[364850218,1749274273177,-354.436695,0.00027542,7]
[364850219,1749274273186,-1554.807314,0.00027542,7]
[364850220,1749274273196,-1554.807314,0.00027542,7]
[364850221,1749274273206,-151.0,0.00027542,7]
[364850222,1749274273216,-206479.97624237,0.00027542,2]
[364850223,1749274274010,-28536.50320159,0.00024831,2]
[364850224,1749274274020,-1793.31571857,0.00025982,2]
[364850225,1749274274030,-150.0,0.000269,2]
[364850226,1749274274041,-146.81542672,0.00027044,2]
[364850227,1749274278768,1046.0,0.00035616,120]
[364850228,1749274371811,26894.0,0.000356,120]
[364850229,1749274453896,3500.0,0.00035616,120]
[364850233,1749274908815,158.62,0.00013699,2]
[364850235,1749274930856,200.0,0.00013631,2]
[364850236,1749275005345,220561.99199902,0.000151,2]
[364850237,1749275045409,-151.0,0.00019801,2]
[364850238,1749275045430,-39.42808174,0.00019801,2]
[364850239,1749275048656,-111.57191826,0.00019801,2]
[364850240,1749275048681,-151.0,0.00019801,2]
[364850241,1749275048703,-89.57422344,0.00019852,2]
[364850242,1749275051651,-151.0,0.00019802,2]
[364850243,1749275051675,-137.31356104,0.00019852,2]
[364850244,1749275053203,-23.11221552,0.00019852,2]
[364850245,1749275053227,-170.50669356,0.00019903,2]
[364850246,1749275055272,-129.49330644,0.00019903,2]
[364850247,1749275055297,-244.43875982,0.00019903,4]
[364850248,1749275057493,-355.50061633,0.00019903,4]
[364850249,1749275061490,-200.06062385,0.00019903,4]
[364850250,1749275061513,-24.12460442,0.00020187,2]
[364850251,1749275064030,-134.49539558,0.00020187,2]
[364850252,1749275064067,-99.84311395,0.00020787,2]
[364850302,1749275332924,171.14,0.00018701,2]
[364850303,1749275338456,10000.0,0.00035616,120]
[364850306,1749275432022,-151.0,0.00020787,2]
[364850307,1749275432033,-800.0,0.00020787,4]
[364850308,1749275432043,-300.0,0.00020787,2]
[364850309,1749275432052,-250.0,0.00020787,2]
[364850310,1749275432062,-3806.98,0.000208,3]
[364850311,1749275432071,-156.587,0.00021335,2]
[364850312,1749275432083,-300.0,0.00021415,2]
[364850313,1749275432094,-300.0,0.00021772,2]
[364850314,1749275432104,-1200.0,0.00021772,2]
[364850315,1749275432114,-300.0,0.00021772,2]
[364850316,1749275432124,-6214.950854,0.00021773,2]
[364850317,1749275432138,-800.0,0.00021781,4]
[364850318,1749275432149,-162.380719,0.00021883,2]
[364850319,1749275432159,-300.0,0.0002205,2]
[364850320,1749275432169,-2224.33757208,0.00022052,2]
[364850321,1749275432180,-3031.76385492,0.000224,2]
[364850322,1749275432204,-943.44726179,0.000224,2]
[364850323,1749275432219,-2958.72048312,0.000224,2]
[364850324,1749275432243,-2391.7246326,0.000224,2]
[364850325,1749275432255,-1712.9407238,0.000224,2]
[364850326,1749275432267,-827.87084126,0.000224,2]
[364850327,1749275432282,-83555.76967407,0.000224,2]
[364850328,1749275432292,-500.0,0.000224,2]
[364850329,1749275432302,-500.0,0.000224,2]
[364850330,1749275432312,-500.0,0.000224,2]
[364850331,1749275432322,-386.69184376,0.000224,2]
[364850332,1749275432332,-318.57535067,0.000224,2]
[364850333,1749275432342,-168.3888056,0.00022431,2]
[364850334,1749275432352,-186.22,0.00022834,2]
[364850335,1749275432362,-300.0,0.00022866,2]
[364850336,1749275432372,-250.0,0.00022866,2]
[364850337,1749275432382,-300.0,0.00022866,2]
[364850338,1749275432391,-800.0,0.00022866,4]
[364850339,1749275432402,-250.0,0.00022866,2]
[364850340,1749275432411,-1000.0,0.00022948,2]
[364850341,1749275432421,-1000.0,0.00022948,2]
[364850342,1749275432431,-174.61919141,0.00022979,2]
[364850343,1749275432440,-23900.0,0.00023377,2]
[364850344,1749275432450,-6152.43,0.00023424,2]
[364850345,1749275432460,-250.0,0.00023445,2]
[364850346,1749275432469,-1500.0,0.00023496,2]
[364850347,1749275432479,-512.59331625,0.00023496,2]
[364850348,1749275432490,-181.08010149,0.00023527,2]
[364850349,1749275432501,-420.0,0.00023665,2]
[364850350,1749275432512,-1680.0,0.00023776,2]
[364850351,1749275432522,-454.90789815,0.000238,9]
[364850352,1749275432532,-454.90789797,0.000238,9]
[364850353,1749275432541,-454.90789797,0.000238,9]
[364850354,1749275432551,-454.90789797,0.000238,9]
[364850355,1749275432561,-150.0,0.0002387,2]
[364850356,1749275432570,-420.0,0.0002396,2]
[364850357,1749275432579,-454.90789797,0.00023969,10]
[364850358,1749275432591,-338.36341378,0.00024075,2]
[364850359,1749275432601,-454.90789797,0.00024486,11]
[364850360,1749275432611,-231.85943634,0.00024536,2]
[364850361,1749275432621,-1000.0,0.00024658,2]
[364850362,1749275432631,-216.32,0.00024799,2]
[364850364,1749275432640,-200.0,0.00024867,2]
[364850366,1749275432650,-2000.0,0.00025,2]
[364850368,1749275432661,-2000.0,0.00025,2]
[364850371,1749275432671,-2000.0,0.00025,2]
[364850373,1749275432680,-454.90789797,0.00025003,12]
[364850374,1749275432690,-274.44,0.00025116,2]
[364850375,1749275432699,-2927.15,0.00025195,2]
[364850376,1749275432709,-2153.28,0.00025213,2]
[364850377,1749275432719,-2731.19,0.00025235,2]
[364850378,1749275432728,-1753.62,0.00025244,2]
[364850379,1749275432738,-3138.41983341,0.00025263,2]
[364850380,1749275432748,-500.0,0.00025285,2]
[364850381,1749275432758,-2174.83,0.00025299,2]
[364850382,1749275432767,-5246.44,0.0002532,2]
[364850383,1749275432777,-10603.86366057,0.00025417,2]
[364850384,1749275432807,-1366.611831,0.00025417,2]
[364850385,1749275432823,-158.09182303,0.00025417,2]
[364850386,1749275432835,-150.0,0.00025456,7]
[364850387,1749275432858,-446.94134771,0.00025491,2]
[364850388,1749275432876,-553.05865229,0.00025491,2]
[364850389,1749275432887,-4536.25,0.00025511,2]
[364850390,1749275432897,-165.66,0.00025517,2]
[364850391,1749275432907,-454.90789797,0.00025521,13]
[364850392,1749275432917,-290.12344974,0.0002553,2]
[364850393,1749275432929,-1351.34433458,0.0002553,2]
[364850394,1749275432942,-959.69674344,0.0002553,2]
[364850398,1749275437989,-200.0,0.00023067,2]
[364850399,1749275437999,-2205.75547224,0.0002553,2]
[364850400,1749275438010,-200.0,0.00025557,2]
[364850401,1749275438021,-412.42,0.00025578,30]
[364850402,1749275438030,-236.75,0.00025583,2]
[364850403,1749275438040,-123.16609726,0.00025586,2]
[364850404,1749275438052,-373.575,0.00025586,2]
[364850405,1749275438068,-4411.60890274,0.00025586,2]
[364850406,1749275438078,-12128.56731457,0.00025693,2]
[364850407,1749275438087,-587.0,0.00025722,2]
[364850408,1749275438097,-18844.19477277,0.00025727,2]
[364850409,1749275438107,-206.0,0.00025859,2]
[364850410,1749275438116,-1000.0,0.000259,2]
[364850411,1749275438126,-500.0,0.000259,2]
[364850412,1749275438138,-500.0,0.000259,2]
[364850413,1749275438155,-500.0,0.000259,2]
[364850414,1749275438165,-500.0,0.000259,2]
[364850415,1749275438176,-500.0,0.000259,2]
[364850416,1749275438187,-500.0,0.000259,2]
[364850417,1749275438197,-500.0,0.000259,2]
[364850418,1749275438208,-500.0,0.000259,2]
[364850419,1749275438219,-500.0,0.000259,2]
[364850420,1749275438230,-328.91131108,0.000259,2]
[364850421,1749275438241,-207.4,0.000259,2]
[364850422,1749275438251,-151.0,0.000259,2]
[364850423,1749275438260,-1900.0,0.00025964,2]
[364850424,1749275438270,-12128.56731457,0.00025969,2]
[364850425,1749275438280,-587.0,0.00026035,2]
[364850426,1749275438289,-454.90789797,0.00026038,14]
[364850427,1749275438299,-274.44,0.00026057,2]
[364850428,1749275438309,-34780.56607783,0.0002607,2]
[364850429,1749275438319,-1768.14,0.00026143,2]
[364850430,1749275438330,-162.65,0.00026154,2]
[364850431,1749275438340,-216.32,0.00026169,2]
[364850432,1749275438350,-12128.56731457,0.00026245,2]
[364850433,1749275438361,-1000.0,0.00026314,2]
[364850434,1749275438371,-150.0,0.00026504,2]
[364850435,1749275438381,-12128.56731457,0.00026521,2]
[364850436,1749275438391,-454.90789797,0.00026555,15]
[364850437,1749275438401,-266.69515749,0.00026575,30]
[364850438,1749275438412,-158.62,0.00026676,2]
[364850439,1749275438423,-266.69515749,0.00026685,30]
[364850440,1749275438433,-151.0,0.00026689,7]
[364850441,1749275438443,-289.323726,0.00026689,7]
[364850442,1749275438453,-151.0,0.00026689,7]
[364850443,1749275438463,-289.323726,0.00026689,7]
[364850444,1749275438473,-151.0,0.00026689,7]
[364850445,1749275438483,-151.0,0.00026689,7]
[364850446,1749275438493,-222.451699,0.00026689,7]
[364850447,1749275438503,-222.451699,0.00026689,7]
[364850448,1749275438513,-151.0,0.00026689,7]
[364850449,1749275438523,-200.0,0.000267,9]
[364850450,1749275438532,-825.5068,0.00026706,15]
[364850451,1749275438542,-155.573486,0.00026715,6]
[364850452,1749275438551,-357.95,0.00026767,2]
[364850453,1749275438561,-13029.1438503,0.00026787,2]
[364850454,1749275438572,-266.69515749,0.00026795,30]
[364850455,1749275438582,-12128.56731457,0.00026797,2]
[364850456,1749275438598,-500.0,0.000268,9]
[364850457,1749275438609,-150.0,0.00026814,2]
[364850458,1749275438619,-151.0,0.00026839,7]
[364850459,1749275438629,-151.0,0.00026839,7]
[364850460,1749275438639,-171.351052,0.00026839,7]
[364850461,1749275438649,-151.0,0.00026839,7]
[364850462,1749275438659,-151.479148,0.00026839,7]
[364850463,1749275438669,-151.479148,0.00026839,7]
[364850464,1749275438679,-151.0,0.00026839,7]
[364850465,1749275438689,-151.0,0.00026842,5]
[364850466,1749275438698,-151.0,0.00026842,7]
[364850467,1749275438708,-151.0,0.00026842,7]
[364850468,1749275438718,-171.351052,0.00026842,7]
[364850469,1749275438728,-151.0,0.00026842,7]
[364850470,1749275438738,-151.479148,0.00026842,7]
[364850471,1749275438748,-151.479148,0.00026842,7]
[364850472,1749275438758,-151.0,0.00026842,7]
[364850473,1749275438767,-151.0,0.0002685,7]
[364850474,1749275438777,-289.323726,0.0002685,7]
[364850475,1749275438786,-151.0,0.0002685,7]
[364850476,1749275438797,-289.323726,0.0002685,7]
[364850477,1749275438808,-151.34286,0.0002685,7]
[364850478,1749275438818,-151.0,0.0002685,7]
[364850479,1749275438829,-222.451699,0.0002685,7]
[364850480,1749275438840,-222.451699,0.0002685,7]
[364850481,1749275438851,-151.0,0.0002685,7]
[364850482,1749275438862,-158.46912682,0.00026877,30]
[364850483,1749275438871,-13029.1438503,0.00026898,2]
[364850484,1749275438881,-800.0,0.000269,9]
[364850485,1749275438892,-158.5237378,0.000269,2]
[364850486,1749275438902,-708.6,0.00026904,2]
[364850487,1749275438911,-150.0,0.00026904,2]
[364850488,1749275438921,-326.44,0.00026904,2]
[364850489,1749275438932,-266.69515749,0.00026904,30]
[364850490,1749275438942,-1000.0,0.00026908,2]
[364850491,1749275438953,-9042.0548,0.00026908,2]
[364850492,1749275438962,-165.66,0.00026935,2]
[364850493,1749275438974,-151.0,0.00026942,7]
[364850494,1749275438984,-228.259468,0.00026942,7]
[364850495,1749275438994,-171.351052,0.00026942,7]
[364850496,1749275439003,-151.0,0.00026942,7]
[364850497,1749275439013,-151.479148,0.00026942,7]
[364850498,1749275439023,-151.479148,0.00026942,7]
[364850499,1749275439037,-151.0,0.00026942,7]
[364850500,1749275439047,-151.0,0.00026952,7]
[364850501,1749275439057,-171.351052,0.00026952,7]
[364850502,1749275439066,-151.0,0.00026952,7]
[364850503,1749275439076,-151.479148,0.00026952,7]
[364850504,1749275439085,-151.479148,0.00026952,7]
[364850505,1749275439095,-151.0,0.00026952,7]
[364850506,1749275439104,-1162.21,0.00026953,2]
[364850507,1749275439115,-170.57,0.00026954,2]
[364850508,1749275439125,-344.2,0.00026954,2]
[364850509,1749275439136,-300.0,0.00026956,2]
[364850510,1749275439147,-454.54,0.00026991,2]
[364850511,1749275439156,-453.19,0.00026991,2]
[364850512,1749275439167,-274.44,0.00026999,2]
[364850513,1749275439179,-151.0,0.00027,7]
[364850514,1749275439188,-289.323726,0.00027,7]
[364850515,1749275439198,-151.0,0.00027,7]
[364850516,1749275439210,-289.323726,0.00027,7]
[364850517,1749275439221,-151.0,0.00027,7]
[364850518,1749275439233,-222.451699,0.00027,7]
[364850519,1749275439242,-222.451699,0.00027,7]
[364850520,1749275439252,-151.0,0.00027,7]
[364850521,1749275439262,-5027.72437613,0.00027,5]
[364850522,1749275439271,-169.0,0.00027,7]
[364850523,1749275439281,-266.69515749,0.00027014,30]
[364850524,1749275439291,-162.65,0.00027017,2]
[364850525,1749275439301,-2000.0,0.00027025,2]
[364850526,1749275439311,-151.0,0.00027026,7]
[364850527,1749275439322,-289.323726,0.00027026,7]
[364850528,1749275439331,-249.166087,0.00027026,7]
[364850529,1749275439341,-289.323726,0.00027026,7]
[364850530,1749275439351,-151.0,0.00027026,7]
[364850531,1749275439361,-222.451699,0.00027026,7]
[364850532,1749275439371,-222.451699,0.00027026,7]
[364850533,1749275439381,-13029.1438503,0.00027041,2]
[364850534,1749275439392,-3.18457328,0.00027044,2]
[364850535,1749275439402,-150.0,0.00027045,2]
[364850536,1749275439413,-454.90789797,0.00027072,16]
[364850537,1749275439422,-12128.56731457,0.00027073,2]
[364850538,1749275439433,-13029.1438503,0.00027089,2]
[364850539,1749275439444,-266.69515749,0.00027096,30]
[364850540,1749275439455,-2000.0,0.00027099,2]
[364850541,1749275439465,-2000.0,0.00027099,2]
[364850542,1749275439476,-151.0,0.000271,7]
[364850543,1749275439493,-171.351052,0.000271,7]
[364850544,1749275439509,-151.0,0.000271,7]
[364850545,1749275439520,-151.479148,0.000271,7]